bitfinex-derivatives/quotes_BTCF0:USTF0_20260113
["timestamp","ask_amount","ask_price","bid_price","bid_amount"]
[1768331420487,0.09541285,93586.0,93560.0,0.09473251]
[1768331420683,0.09628,93585.0,93562.0,0.09473251]
[1768331420886,0.09628,93587.0,93573.0,0.010692]
[1768331421196,0.01069,93585.0,93566.0,0.09473251]
[1768331421782,0.010691,93581.0,93566.0,0.09473251]
[1768331422586,0.09541285,93588.0,93566.0,0.09473251]
[1768331423596,0.010691,93581.0,93566.0,0.09473251]
[1768331424792,0.010691,93579.0,93561.0,0.010693]
[1768331424995,0.010691,93579.0,93563.0,0.010693]
[1768331425394,0.010691,93577.0,93561.0,0.09473251]
[1768331426391,0.010691,93577.0,93562.0,0.010693]
[1768331427087,0.010691,93577.0,93561.0,0.09473251]
[1768331428798,0.010691,93577.0,93563.0,0.09473251]
[1768331428999,0.09417314,93587.0,93563.0,0.10542551]
[1768331429195,0.09541285,93589.0,93566.0,0.19402385]
[1768331429499,0.09541285,93589.0,93567.0,0.09473251]
[1768331429901,0.010691,93578.0,93567.0,0.09473251]
[1768331430207,0.09541285,93588.0,93567.0,0.09473251]
[1768331430502,0.010691,93582.0,93567.0,0.09473251]
[1768331431094,0.09541285,93588.0,93567.0,0.09473251]
[1768331431299,0.010691,93579.0,93567.0,0.09473251]
[1768331431803,0.10610385,93584.0,93562.0,0.09929134]
[1768331431992,0.10610385,93584.0,93560.0,0.09473251]
[1768331431993,0.010692,93571.0,93560.0,0.09473251]
[1768331432304,0.09417314,93585.0,93557.0,0.19557134]
[1768331432305,0.010692,93568.0,93557.0,0.09628]
[1768331432892,0.010692,93571.0,93557.0,0.09628]
[1768331433092,0.010692,93571.0,93557.0,0.19101251]
[1768331433293,0.010691,93577.0,93561.0,0.010693]
[1768331433488,0.010691,93575.0,93561.0,0.10542551]
[1768331433695,0.010688,93607.0,93584.0,0.10998134]
[1768331433890,0.010688,93605.0,93590.0,0.01069]
[1768331434098,0.09624,93606.0,93590.0,0.10542251]
[1768331434302,0.12318981,93606.0,93590.0,0.09473251]
[1768331434700,0.09624,93606.0,93594.0,0.09473251]
[1768331435004,1e-08,93607.0,93600.0,0.01457517]
[1768331435201,0.09284194,93625.0,93603.0,0.09288014]
[1768331435403,0.010686,93623.0,93606.0,0.09288014]
[1768331435597,0.010686,93621.0,93606.0,0.15288014]
[1768331435802,0.01627656,93625.0,93606.0,0.09288014]
[1768331435803,0.010686,93619.0,93606.0,0.09288014]
[1768331436705,0.010686,93619.0,93599.0,0.09288014]
[1768331436909,0.010686,93619.0,93600.0,0.09288014]
[1768331437210,0.010686,93619.0,93601.0,0.09288014]
[1768331437508,0.010686,93619.0,93602.0,0.09288014]
[1768331439314,0.0160751,93629.0,93612.0,0.09288014]
[1768331439611,0.010686,93625.0,93612.0,0.09288014]
[1768331439809,0.10902842,93631.0,93608.0,0.09624]
[1768331439999,0.010686,93624.0,93611.0,0.00016025]
[1768331440196,0.10902842,93631.0,93611.0,0.15304039]
[1768331440398,0.010685,93630.0,93612.0,0.09288014]
[1768331440798,0.10352694,93630.0,93612.0,0.09288014]
[1768331441007,0.09284194,93630.0,93612.0,0.09288014]
[1768331441510,0.00534,93633.0,93617.0,0.09288014]
[1768331441713,0.010684,93639.0,93621.0,0.09288014]
[1768331441908,0.09841918,93637.0,93614.0,0.09288014]
[1768331442104,0.09284194,93635.0,93621.0,0.09624]
[1768331442299,0.010685,93634.0,93621.0,0.09624]
[1768331442906,0.010685,93634.0,93618.0,0.09288014]
[1768331443116,0.010685,93634.0,93619.0,0.09624]
[1768331443313,0.01625855,93638.0,93621.0,0.09288014]
[1768331443620,0.09502753,93640.0,93621.0,0.09288014]
[1768331443621,0.1117152,93640.0,93621.0,0.09288014]
[1768331444414,0.010685,93636.0,93621.0,0.09288014]
[1768331444609,0.010684,93639.0,93621.0,0.11234921]
[1768331444809,0.010684,93639.0,93622.0,0.09288014]
[1768331445015,0.010684,93639.0,93622.0,0.15288014]
[1768331445211,0.010684,93639.0,93623.0,0.09288014]
[1768331445514,0.010684,93639.0,93624.0,0.09288014]
[1768331445714,0.010684,93639.0,93624.0,0.15288014]
[1768331445915,0.010684,93639.0,93621.0,0.01946907]
[1768331445916,0.010685,93636.0,93625.0,0.09288014]
[1768331446314,0.10571153,93640.0,93625.0,0.09288014]
[1768331447617,0.010684,93638.0,93625.0,0.09288014]
[1768331449316,0.010684,93642.0,93626.0,0.09288014]
[1768331449512,0.09502753,93640.0,93628.0,0.09288014]
[1768331449911,0.010684,93637.0,93622.0,0.09288014]
[1768331450318,0.010684,93637.0,93623.0,0.09288014]
[1768331450521,0.010684,93637.0,93624.0,0.09288014]
[1768331450819,0.010684,93637.0,93625.0,0.09288014]
[1768331452222,0.00533886,93653.0,93628.0,0.01808212]
[1768331452414,0.09502753,93650.0,93632.0,0.01808212]
[1768331452614,0.09502753,93650.0,93633.0,0.010685]
[1768331452920,0.09502753,93650.0,93633.0,0.070685]
[1768331453323,0.010683,93647.0,93633.0,0.06]
[1768331453711,0.010684,93645.0,93633.0,0.06]
[1768331454414,0.010684,93645.0,93633.0,0.05506375]
[1768331455521,0.20460247,93650.0,93633.0,0.05506375]
[1768331456111,0.11176053,93650.0,93633.0,0.05506375]
[1768331456606,0.010683,93645.0,93633.0,0.05506375]
[1768331460119,0.11176053,93650.0,93633.0,0.05506375]
[1768331460325,0.010684,93644.0,93633.0,0.05506375]
[1768331460920,0.010684,93644.0,93632.0,0.09636025]
[1768331460921,0.09284194,93649.0,93632.0,0.09636025]
[1768331461225,0.09284194,93645.0,93632.0,0.09636025]
[1768331461426,0.010684,93643.0,93632.0,0.09636025]
[1768331461819,0.010683,93646.0,93633.0,0.05976976]
[1768331462020,0.09284194,93657.0,93636.0,0.04908476]
[1768331462322,1.59502753,93660.0,93644.0,0.04908476]
[1768331462323,1.5,93660.0,93644.0,0.04908476]
[1768331462626,1.59502753,93660.0,93645.0,0.0330639]
[1768331462831,0.010683,93651.0,93643.0,0.0962]
[1768331463221,0.010683,93651.0,93643.0,0.08265626]
[1768331463721,0.01611373,93657.0,93643.0,0.08265626]
[1768331464720,0.010682,93656.0,93643.0,0.08265626]
[1768331465425,0.010682,93660.0,93644.0,0.03309497]
[1768331465617,0.10352294,93663.0,93648.0,0.010683]
[1768331465820,0.10352294,93663.0,93644.0,0.09309497]
[1768331465821,0.09284194,93663.0,93644.0,9.7e-07]
[1768331466021,0.04667537,93641.0,93629.0,0.0962]
[1768331466223,0.04667537,93641.0,93622.0,0.1203]
[1768331466224,0.04667537,93641.0,93620.0,0.09502753]
[1768331466426,0.04667537,93641.0,93615.0,0.00748182]
[1768331466427,0.04667537,93641.0,93621.0,0.0962]
[1768331466623,0.010685,93628.0,93613.0,0.00534114]
[1768331466830,0.10571253,93631.0,93614.0,0.106887]
[1768331467025,0.010685,93631.0,93616.0,0.010687]
[1768331467226,0.010685,93636.0,93614.0,0.0962]
[1768331467431,0.010685,93636.0,93622.0,0.010686]
[1768331467731,0.00016017,93634.0,93620.0,0.0599677]
[1768331467931,1.7e-07,93634.0,93631.0,0.010685]
[1768331468133,0.010683,93649.0,93634.0,0.010685]
[1768331468533,0.010684,93643.0,93630.0,0.09489083]
[1768331468927,0.09408244,93653.0,93630.0,0.09489083]
[1768331469127,0.010684,93644.0,93630.0,0.09489083]
[1768331469328,0.010683,93647.0,93631.0,0.010685]
[1768331469532,0.09408244,93653.0,93630.0,0.09489083]
[1768331469931,0.010683,93646.0,93632.0,0.010685]
[1768331470127,0.010684,93644.0,93630.0,0.09489083]
[1768331470325,0.010684,93644.0,93631.0,0.010685]
[1768331470634,0.010684,93642.0,93628.0,0.010685]
[1768331470832,0.09916125,93648.0,93626.0,0.0962]
[1768331471028,0.010683,93646.0,93626.0,0.19109083]
[1768331471733,0.010683,93646.0,93627.0,0.00046317]
[1768331472439,0.010683,93646.0,93630.0,0.010685]
[1768331473631,0.09408244,93653.0,93628.0,8.681e-05]
[1768331473824,0.09408244,93653.0,93630.0,8.681e-05]
[1768331474031,0.010683,93648.0,93633.0,0.010685]
[1768331474336,0.010683,93648.0,93632.0,0.010685]
[1768331474931,0.010683,93648.0,93634.0,0.010685]
[1768331475735,0.010683,93648.0,93633.0,0.010685]
[1768331477632,0.010683,93648.0,93630.0,8.681e-05]
[1768331477633,0.09916125,93652.0,93630.0,8.681e-05]
[1768331477836,0.0962,93654.0,93641.0,0.0107488]
[1768331478127,0.0962,93654.0,93641.0,0.010684]
[1768331478932,0.010683,93650.0,93639.0,0.09907638]
[1768331479127,0.010683,93650.0,93638.0,0.00016017]
[1768331479333,0.010683,93647.0,93638.0,0.00016017]
[1768331479642,0.010683,93645.0,93638.0,0.00016017]
[1768331480442,0.09449137,93654.0,93638.0,0.00016017]
[1768331480943,0.010683,93649.0,93638.0,0.00016017]
[1768331481546,0.19209758,93648.0,93633.0,0.00534]
[1768331482140,0.09449137,93652.0,93636.0,0.010684]
[1768331482529,0.010683,93651.0,93633.0,0.00534]
[1768331482736,0.09760621,93651.0,93633.0,0.016025]
[1768331482934,0.19209758,93650.0,93633.0,0.016025]
[1768331483134,0.010684,93644.0,93633.0,0.00534]
[1768331483337,0.010683,93647.0,93633.0,0.00534]
[1768331484645,0.09760621,93649.0,93633.0,0.00534]
[1768331484842,0.00016017,93653.0,93635.0,0.010685]
[1768331485039,0.010683,93650.0,93633.0,0.00534]
[1768331487050,0.010683,93650.0,93634.0,0.010685]
[1768331487450,0.10568192,93650.0,93634.0,0.010685]
[1768331488955,0.19209758,93649.0,93633.0,0.00534]
[1768331489343,0.010683,93647.0,93633.0,0.00534]
[1768331489543,0.10828921,93647.0,93633.0,0.00534]
[1768331489745,0.09499892,93643.0,93632.0,0.0962]
[1768331489941,0.10568292,93643.0,93631.0,0.0962]
[1768331490147,0.09499892,93641.0,93631.0,0.0962]
[1768331491455,0.09760621,93642.0,93621.0,0.010686]
[1768331491750,0.09760621,93642.0,93600.0,0.10570417]
[1768331491751,0.010685,93634.0,93617.0,0.010687]
[1768331492051,0.010685,93634.0,93619.0,0.010686]
[1768331492247,0.19209758,93635.0,93621.0,0.010686]
[1768331493539,0.010685,93634.0,93618.0,0.106886]
[1768331493744,0.19209758,93635.0,93618.0,0.0962]
[1768331494049,0.00016017,93653.0,93624.0,0.09907638]
[1768331494249,0.010683,93650.0,93636.0,0.010684]
[1768331494744,0.09760621,93651.0,93638.0,0.010684]
[1768331495145,0.10828921,93651.0,93635.0,0.010685]
[1768331496343,0.20667294,93649.0,93632.0,0.010685]
[1768331496547,0.097795,93644.0,93628.0,0.010685]
[1768331496751,0.097795,93644.0,93630.0,0.010685]
[1768331496952,0.097795,93644.0,93628.0,0.0962]
[1768331497158,0.010683,93650.0,93635.0,0.010685]
[1768331497750,0.20667294,93650.0,93632.0,0.010685]
[1768331497949,0.097795,93649.0,93632.0,0.010685]
[1768331498150,0.00016017,93653.0,93640.0,0.010684]
[1768331498347,0.19615011,93653.0,93642.0,0.010684]
[1768331498550,0.00016017,93653.0,93644.0,0.010684]
[1768331498857,0.097795,93667.0,93652.0,0.010683]
[1768331499055,0.097795,93667.0,93646.0,0.010683]
[1768331499056,0.12562549,93667.0,93646.0,0.010683]
[1768331499252,0.11494449,93667.0,93646.0,0.060683]
[1768331499452,0.097795,93665.0,93643.0,0.010684]
[1768331499652,0.097795,93664.0,93643.0,0.010684]
[1768331499853,0.010682,93660.0,93643.0,0.070684]
[1768331500462,0.00533886,93653.0,93643.0,0.06]
[1768331500863,0.00533886,93653.0,93636.0,0.0983858]
[1768331501057,0.19598994,93649.0,93638.0,0.06]
[1768331501252,0.097795,93648.0,93638.0,0.05534506]
[1768331501452,0.010683,93646.0,93638.0,0.05534506]
[1768331501858,0.10313386,93653.0,93638.0,0.05534506]
[1768331502062,0.11381686,93653.0,93638.0,0.06602906]
[1768331502265,0.10313386,93653.0,93639.0,0.010684]
[1768331502562,0.10313386,93653.0,93641.0,0.010684]
[1768331502763,0.00533886,93653.0,93641.0,0.06602906]
[1768331503154,0.00533886,93653.0,93641.0,0.05534506]
[1768331503856,0.00533886,93653.0,93642.0,0.010684]
[1768331504058,0.0962,93670.0,93642.0,0.010684]
[1768331504059,0.010681,93665.0,93642.0,0.05534506]
[1768331504362,0.010681,93665.0,93650.0,0.010683]
[1768331504363,0.0962,93665.0,93650.0,0.010683]
[1768331505563,1.597795,93667.0,93652.0,0.010683]
[1768331505864,1.597795,93667.0,93645.0,0.1945858]
[1768331505865,1.608476,93667.0,93649.0,0.010683]
[1768331506251,1.608476,93667.0,93645.0,0.2545858]
[1768331506252,1.597795,93667.0,93646.0,0.010683]
[1768331506456,0.097795,93666.0,93648.0,0.010683]
[1768331506653,0.108476,93666.0,93648.0,0.010683]
[1768331507362,0.10863617,93666.0,93648.0,0.010683]
[1768331508163,0.010681,93664.0,93648.0,0.010683]
[1768331508464,0.010682,93662.0,93645.0,0.106883]
[1768331508963,0.010681,93663.0,93645.0,0.0962]
[1768331509163,0.010681,93663.0,93646.0,0.010683]
[1768331509756,0.097795,93665.0,93646.0,0.010683]
[1768331510556,0.097795,93665.0,93646.0,0.070683]
[1768331510779,0.108476,93665.0,93648.0,0.010683]
[1768331511158,0.010682,93662.0,93645.0,0.106883]
[1768331511464,0.010682,93660.0,93645.0,0.106883]
[1768331512165,0.097795,93658.0,93645.0,0.0962]
[1768331512367,0.010682,93656.0,93645.0,0.0962]
[1768331512663,0.097795,93652.0,93640.0,0.010684]
[1768331512862,0.097795,93652.0,93640.0,0.070684]
[1768331513168,0.097795,93652.0,93640.0,0.1562]
[1768331514157,0.097795,93658.0,93641.0,0.010684]
[1768331514358,0.097795,93658.0,93649.0,0.010683]
[1768331514656,0.097795,93658.0,93644.0,0.010684]
[1768331514856,0.097795,93658.0,93646.0,0.010683]
[1768331515267,0.097795,93658.0,93643.0,0.010684]
[1768331515569,0.097795,93658.0,93643.0,0.060684]
[1768331516467,0.010682,93656.0,93643.0,0.05]
[1768331516657,0.010682,93655.0,93643.0,0.05]
[1768331516857,0.108477,93658.0,93643.0,0.05]
[1768331517367,0.097795,93658.0,93643.0,0.05]
[1768331518063,0.097795,93657.0,93643.0,0.05]
[1768331520460,0.20667094,93664.0,93643.0,0.14194079]
[1768331520657,9.4e-07,93664.0,93643.0,0.14194079]
[1768331520861,0.010678,93692.0,93656.0,0.19032659]
[1768331521061,0.010678,93692.0,93640.0,0.19121617]
[1768331521062,0.01068,93678.0,93651.0,0.18810079]
[1768331521262,0.01068,93679.0,93652.0,0.09616]
[1768331521457,0.010682,93662.0,93652.0,0.09616]
[1768331521661,0.01068,93679.0,93652.0,0.09616]
[1768331521871,0.11212935,93680.0,93646.0,0.09194079]
[1768331521872,1.5,93672.0,93651.0,0.09616]
[1768331522072,0.010681,93670.0,93654.0,0.010682]
[1768331522367,1.5,93672.0,93651.0,0.09616]
[1768331522759,0.19598994,93670.0,93651.0,0.09616]
[1768331522959,0.097795,93670.0,93651.0,0.14616]
[1768331523158,0.097795,93670.0,93655.0,0.010682]
[1768331523369,0.097795,93670.0,93656.0,0.010682]
[1768331523571,0.108476,93670.0,93653.0,0.010682]
[1768331523771,0.097795,93670.0,93653.0,0.05]
[1768331524071,0.09819494,93678.0,93657.0,0.09194079]
[1768331524272,1.597795,93677.0,93653.0,0.09194079]
[1768331524474,0.01068,93674.0,93656.0,0.010682]
[1768331524973,0.010681,93670.0,93656.0,0.05]
[1768331525177,1.597795,93677.0,93653.0,0.09194079]
[1768331525369,1.597795,93677.0,93653.0,0.15262279]
[1768331525575,0.010681,93670.0,93655.0,0.010682]
[1768331525875,0.010681,93670.0,93655.0,0.060682]
[1768331526078,0.010681,93670.0,93655.0,0.05]
[1768331526266,1.5,93677.0,93656.0,0.19476725]
[1768331526467,1.5,93677.0,93658.0,0.09752771]
[1768331526668,0.01068,93675.0,93656.0,0.09723954]
[1768331526864,0.01068,93675.0,93656.0,0.15723954]
[1768331527381,7.2e-07,93673.0,93670.0,0.010681]
[1768331527682,7.2e-07,93673.0,93667.0,0.010681]
[1768331527868,7.2e-07,93673.0,93664.0,0.19368771]
[1768331528068,0.10916251,93691.0,93674.0,0.01068]
[1768331528265,0.09848451,93691.0,93674.0,0.01068]
[1768331528478,1.59616,93692.0,93673.0,0.01068]
[1768331528673,0.010678,93690.0,93671.0,0.19476725]
[1768331528878,0.010678,93690.0,93671.0,0.25476725]
[1768331529079,0.010678,93690.0,93672.0,0.01068]
[1768331529375,1.59616,93692.0,93676.0,0.01068]
[1768331529578,1.59616,93692.0,93676.0,0.06]
[1768331529777,1.510678,93692.0,93676.0,0.06]
[1768331530078,0.10046325,93693.0,93675.0,0.00016017]
[1768331530276,0.19894776,93693.0,93675.0,0.00016017]
[1768331530469,0.19361118,93684.0,93666.0,0.010681]
[1768331530673,0.20429018,93683.0,93667.0,0.09616]
[1768331531174,0.19361118,93682.0,93667.0,0.106841]
[1768331531579,0.19361118,93668.0,93654.0,0.010682]
[1768331531880,0.19361118,93675.0,93652.0,0.19476725]
[1768331532172,0.010681,93668.0,93653.0,0.09616]
[1768331532576,0.00016017,93673.0,93653.0,0.09616]
[1768331532767,0.010681,93668.0,93653.0,0.09616]
[1768331533078,0.010681,93668.0,93650.0,0.010683]
[1768331533079,0.19361118,93660.0,93642.0,0.09616]
[1768331533290,0.010683,93650.0,93642.0,0.05]
[1768331533575,0.19361118,93656.0,93642.0,0.05]
[1768331533965,0.010681,93666.0,93633.0,0.00534]
[1768331533966,0.09848451,93651.0,93633.0,0.00534]
[1768331534170,0.010683,93647.0,93633.0,0.1015]
[1768331534374,0.010683,93647.0,93640.0,0.00016017]
[1768331534579,0.01084317,93649.0,93640.0,0.00016017]
[1768331535284,0.00016017,93649.0,93640.0,0.00016017]
[1768331535472,0.01084317,93649.0,93640.0,0.00016017]
[1768331535667,0.01084317,93649.0,93620.0,0.010686]
[1768331535668,0.19361118,93644.0,93620.0,0.010686]
[1768331535877,0.010685,93632.0,93617.0,0.09723954]
[1768331536175,0.19361118,93639.0,93620.0,0.010686]
[1768331536383,0.19361118,93639.0,93620.0,0.060686]
[1768331536572,0.010684,93638.0,93620.0,0.060686]
[1768331536772,0.19891993,93638.0,93620.0,0.060686]
[1768331536983,0.18289707,93638.0,93616.0,0.09616]
[1768331537377,0.18289707,93638.0,93622.0,0.010686]
[1768331539176,0.18289707,93638.0,93618.0,0.010686]
[1768331539576,0.18289707,93638.0,93618.0,0.060686]
[1768331540793,0.010684,93637.0,93616.0,0.09616]
[1768331541281,0.010684,93637.0,93616.0,0.14616]
[1768331541679,0.18823593,93636.0,93616.0,0.09616]
[1768331541874,0.18823593,93636.0,93617.0,0.010687]
[1768331542185,0.010685,93635.0,93617.0,0.010687]
[1768331542680,0.010685,93635.0,93617.0,0.070687]
[1768331543487,0.010685,93635.0,93617.0,0.010687]
[1768331543989,0.010685,93635.0,93617.0,0.060687]
[1768331544193,0.18823593,93636.0,93616.0,0.09616]
[1768331544486,0.09740396,93634.0,93616.0,0.09616]
[1768331544684,0.010686,93626.0,93613.0,0.00534114]
[1768331544986,0.19892193,93626.0,93613.0,0.00534114]
[1768331545184,0.09740396,93624.0,93613.0,0.00534114]
[1768331545387,0.01716394,93636.0,93550.0,0.31201011]
[1768331545388,0.09740396,93621.0,93606.0,0.0962]
[1768331545691,0.09740396,93621.0,93605.0,0.0962]
[1768331546784,0.18823593,93620.0,93605.0,0.0962]
[1768331546986,0.18823593,93620.0,93606.0,0.010688]
[1768331547288,0.09083197,93620.0,93606.0,0.010688]
[1768331550588,0.010686,93622.0,93606.0,0.010688]
[1768331550787,0.09740396,93624.0,93608.0,0.010688]
[1768331550990,0.010686,93623.0,93608.0,0.010688]
[1768331551190,0.010686,93623.0,93605.0,0.106888]
[1768331551390,0.010686,93623.0,93607.0,0.010688]
[1768331552081,0.010685,93628.0,93612.0,0.010687]
[1768331552284,0.00016017,93629.0,93614.0,0.10304485]
[1768331552477,0.010686,93628.0,93614.0,0.09235785]
[1768331552790,0.010686,93628.0,93612.0,0.0985101]
[1768331552991,0.010686,93626.0,93612.0,0.0985101]
[1768331553392,0.00016017,93629.0,93612.0,0.0985101]
[1768331553687,0.00016017,93629.0,93617.0,0.010687]
[1768331554493,0.00016017,93629.0,93612.0,0.19086795]
[1768331554688,0.09083197,93646.0,93625.0,0.09235785]
[1768331554990,0.010684,93641.0,93625.0,0.010686]
[1768331555190,0.010684,93641.0,93622.0,0.010686]
[1768331555391,0.010684,93641.0,93619.0,0.28455685]
[1768331555595,0.010684,93641.0,93625.0,0.010686]
[1768331556093,0.0962,93647.0,93629.0,0.0925964]
[1768331556290,0.106883,93647.0,93630.0,0.010685]
[1768331556693,0.010683,93645.0,93627.0,0.010685]
[1768331557091,0.19861618,93643.0,93625.0,0.010686]
[1768331557297,0.010684,93641.0,93622.0,0.010686]
[1768331557490,0.09675987,93640.0,93622.0,0.060686]
[1768331557797,0.09675987,93640.0,93625.0,0.010686]
[1768331558003,0.09117231,93641.0,93627.0,0.010685]
[1768331558292,0.10744387,93645.0,93627.0,0.010685]
[1768331559787,0.19861618,93645.0,93627.0,0.010685]
[1768331559983,0.09675987,93644.0,93627.0,0.010685]
[1768331560599,0.010684,93643.0,93627.0,0.010685]
[1768331560798,0.19861618,93643.0,93627.0,0.010685]
[1768331561194,0.09675987,93640.0,93624.0,0.010686]
[1768331561395,0.09675987,93638.0,93621.0,0.010686]
[1768331561698,0.10185731,93634.0,93622.0,0.0962]
[1768331561889,0.10185731,93634.0,93620.0,0.0962]
[1768331562089,0.09117231,93634.0,93620.0,0.0962]
[1768331562300,0.09117231,93634.0,93621.0,0.010686]
[1768331562485,0.18793218,93641.0,93620.0,0.19120952]
[1768331562795,0.18793218,93641.0,93626.0,0.010686]
[1768331562996,0.09500952,93640.0,93626.0,0.010686]
[1768331564394,0.19176939,93640.0,93626.0,0.010686]
[1768331565398,0.09675987,93639.0,93626.0,0.010686]
[1768331565700,0.09675987,93639.0,93620.0,0.19120952]
[1768331565895,0.18793218,93638.0,93625.0,0.010686]
[1768331566700,0.09117231,93637.0,93625.0,0.010686]
[1768331567702,0.09117231,93637.0,93622.0,0.010686]
[1768331568090,0.09117231,93637.0,93621.0,0.010686]
[1768331569606,0.18793218,93637.0,93621.0,0.010686]
[1768331570401,0.09675987,93628.0,93608.0,0.0925964]
[1768331570601,0.18793218,93628.0,93614.0,0.010687]
[1768331570808,0.18793218,93626.0,93611.0,0.010687]
[1768331571105,0.09675987,93625.0,93611.0,0.010687]
[1768331571497,0.09675987,93625.0,93613.0,0.010687]
[1768331572206,0.10744587,93625.0,93609.0,0.0962]
[1768331572503,0.010686,93619.0,93601.0,0.09576045]
[1768331572707,0.010686,93620.0,93603.0,0.010688]
[1768331572899,0.18793218,93623.0,93604.0,0.0962]
[1768331573099,0.010687,93617.0,93604.0,0.06]
[1768331573408,0.09675987,93616.0,93602.0,0.0962]
[1768331573592,0.09117231,93617.0,93603.0,0.010688]
[1768331574506,0.09117231,93617.0,93605.0,0.010688]
[1768331575500,0.09117231,93617.0,93602.0,0.0962]
[1768331576511,0.09117231,93617.0,93604.0,0.010688]
[1768331576711,0.09117231,93617.0,93602.0,0.0962]
[1768331578110,0.09675987,93616.0,93602.0,0.0962]
[1768331578318,0.010687,93614.0,93602.0,0.0962]
[1768331578612,0.09675987,93616.0,93602.0,0.0962]
[1768331578810,0.010687,93611.0,93602.0,0.0962]
[1768331579314,0.010687,93614.0,93602.0,0.0962]
[1768331579915,0.09675987,93616.0,93602.0,0.0962]
[1768331580118,0.00016017,93619.0,93602.0,0.0962]
[1768331580302,0.00016017,93619.0,93606.0,0.010688]
[1768331580818,0.00016017,93619.0,93610.0,0.010687]
[1768331581217,0.00016017,93619.0,93608.0,0.010688]
[1768331582004,0.00016017,93619.0,93609.0,0.010687]
[1768331582921,0.00016017,93619.0,93605.0,0.18835685]
[1768331583106,0.010685,93629.0,93612.0,0.010687]
[1768331583311,0.00534,93633.0,93619.0,0.10569552]
[1768331583512,0.00534,93633.0,93619.0,0.010686]
[1768331583714,0.00534,93633.0,93620.0,0.09500952]
[1768331584208,0.00534,93633.0,93621.0,0.010686]
[1768331584412,0.18793218,93645.0,93626.0,0.010686]
[1768331584611,0.09500952,93640.0,93620.0,0.18760592]
[1768331584916,0.010685,93635.0,93620.0,0.09500952]
[1768331585116,0.010685,93635.0,93621.0,0.00016017]
[1768331585616,0.010685,93633.0,93621.0,0.00016017]
[1768331586019,0.010685,93636.0,93621.0,0.00016017]
[1768331587808,0.09878755,93638.0,93621.0,0.00016017]
[1768331588013,0.09201616,93637.0,93621.0,0.00016017]
[1768331588212,0.09878755,93636.0,93621.0,0.00016017]
[1768331588413,0.09878755,93635.0,93621.0,0.00016017]
[1768331588811,0.010685,93632.0,93621.0,0.00016017]
[1768331589516,0.09878755,93634.0,93621.0,0.00016017]
[1768331590217,0.010685,93631.0,93621.0,0.00016017]
[1768331591222,0.010685,93629.0,93621.0,0.00016017]
[1768331591424,0.09878755,93623.0,93610.0,0.09500952]
[1768331591612,0.09201616,93624.0,93611.0,0.0962]
[1768331592224,0.010686,93623.0,93611.0,0.0962]
[1768331592726,0.19080371,93624.0,93611.0,0.0962]
[1768331594426,0.19080371,93624.0,93611.0,0.106887]
[1768331594626,0.09201616,93624.0,93613.0,0.010687]
[1768331594824,0.09878755,93632.0,93619.0,0.010686]
[1768331595020,0.0962,93640.0,93625.0,0.010686]
[1768331595220,0.20148771,93642.0,93625.0,0.010686]
[1768331595421,0.28700371,93642.0,93625.0,0.05]
[1768331595822,0.010684,93641.0,93625.0,0.05]
[1768331596723,0.010684,93641.0,93624.0,0.010686]
[1768331597330,0.010684,93642.0,93623.0,0.10384979]
[1768331597720,0.09472838,93646.0,93623.0,0.10384979]
[1768331597930,0.09063394,93645.0,93623.0,0.10384979]
[1768331598124,0.09472838,93644.0,93623.0,0.10384979]
[1768331598429,0.18536232,93644.0,93623.0,0.10384979]
[1768331598631,0.09472838,93643.0,93623.0,0.10384979]
[1768331599531,0.010684,93640.0,93623.0,0.010686]
[1768331602137,0.010684,93638.0,93622.0,0.0962]
[1768331602329,0.010684,93638.0,93617.0,0.09410144]
[1768331602330,0.18536232,93631.0,93610.0,0.09500952]
[1768331602536,0.18536232,93630.0,93614.0,0.0962]
[1768331602726,0.18536232,93630.0,93615.0,0.010687]
[1768331603030,0.09472838,93628.0,93613.0,0.00534114]
[1768331603330,0.09063394,93629.0,93617.0,0.010687]
[1768331603535,0.09063394,93629.0,93614.0,0.0962]
[1768331603836,0.09063394,93629.0,93614.0,0.1562]
[1768331604044,0.09472838,93632.0,93614.0,0.1562]
[1768331604535,0.09063394,93635.0,93627.0,0.010686]
[1768331604735,0.09063394,93635.0,93620.0,0.09500952]
[1768331604930,0.09063394,93635.0,93621.0,0.010686]
[1768331605135,0.09063394,93635.0,93621.0,0.070686]
[1768331605335,0.09063394,93635.0,93621.0,0.010686]
[1768331606838,0.18536232,93640.0,93623.0,0.010686]
[1768331607030,0.18536232,93640.0,93620.0,0.10569552]
[1768331607031,0.18536232,93637.0,93620.0,0.10569552]
[1768331607230,0.18536232,93637.0,93622.0,0.010686]
[1768331607231,0.09472838,93636.0,93622.0,0.010686]
[1768331607938,0.09472838,93636.0,93620.0,0.09500952]
[1768331608134,0.00016017,93641.0,93624.0,0.09485076]
[1768331608440,0.00016017,93641.0,93636.0,0.010684]
[1768331608631,0.09063394,93650.0,93633.0,0.010685]
[1768331608632,0.09472838,93649.0,93633.0,0.010685]
[1768331608829,0.10569152,93660.0,93633.0,0.010685]
[1768331608830,0.18536232,93663.0,93639.0,0.2848698]
[1768331609030,0.010682,93660.0,93650.0,0.09500952]
[1768331609232,0.010682,93660.0,93642.0,0.010684]
[1768331609533,0.19604432,93660.0,93642.0,0.010684]
[1768331609837,0.19604432,93660.0,93642.0,0.06084417]
[1768331610040,0.18536232,93660.0,93645.0,0.010683]
[1768331610543,0.18536232,93660.0,93642.0,0.01084417]
[1768331611533,0.18536232,93660.0,93642.0,0.07084417]
[1768331612341,0.18536232,93660.0,93644.0,0.010684]
[1768331612744,0.19604432,93660.0,93642.0,0.00016017]
[1768331612942,0.19604432,93660.0,93643.0,0.010684]
[1768331613243,0.18536232,93659.0,93642.0,0.00016017]
[1768331613543,0.09472838,93655.0,93642.0,0.00016017]
[1768331613742,0.18536232,93654.0,93642.0,0.00016017]
[1768331614044,0.09472838,93653.0,93642.0,0.00016017]
[1768331614446,0.10541038,93656.0,93642.0,0.09636017]
[1768331614646,0.09063394,93664.0,93652.0,0.010683]
[1768331614844,0.09063394,93664.0,93652.0,0.06]
[1768331615339,0.09063394,93664.0,93644.0,0.09875155]
[1768331615536,0.11935862,93673.0,93644.0,0.06]